Workbook

Sheet Cover
A5: Tasmanian Networks Pty Ltd
A7: ABN 24 167 357 299
A13: Transmission Network Service Provider
A14: Regulatory Financial Statements
A19: 2017-18

Sheet Index
B2: INFORMATION DISCLOSURE REQUIREMENTS
C4: TABLE OF CONTENTS
C5: for the year ended 30 June 2018
B7: TYPE | C7: PROFORMA STATEMENT | D7: STATEMENT NUMBER | E7: PAGE
B9: Accounting Policies | C9: Accounting Policies | D9: ACC Pol | E9: 3
B11: Regulatory Financial Statements
C12: Income Statement | D12: RFS Inc | E12: 4
B14: Disaggregation Statements
C15: Income Statement | D15: DISAGG Inc | E15: 5
B17: Workpapers supporting the Disaggregation Statements:
C18: Operations and maintenance expenditure | D18: DISAGG Opex | E18: 6
C19: Causal allocations | D19: DISAGG Aloc1 | E19: 7
C20: Non-causal allocations | D20: DISAGG Aloc2 | E20: 8
B22: Prescribed Transmission Services
C23: Regulatory adjustment journals | D23: PTS Adj | E23: 9
C25: Price reduction/recovery | D25: PTS PriceRedn | E25: 10
C27: Discount | D27: PTS Disc | E27: 11
C29: Revenue analysis | D29: PTS Rev | E29: 12
B31: Asset schedules and supporting papers:
B32: Prescribed Transmission Services | C32: Asset Aging Schedule | D32: PTS Asset Aging | E32: 13
B34: Provisions Schedules:
B35: Disaggregation Statements | C35: Provisions Summary | D35: DISAGG ProvSum | E35: 14
C36: Provisions Reconciliation | D36: PTS ProvRec | E36: 15
B38: Other Information
C39: Related Party Transactions | D39: Inf Rel Part Trans | E39: 16
C40: Revenue Reconciliation | D40: Inf Rev Rec | E40: 17
B42: Non-financial Schedules
C43: Current Map of the Network | D43: NFS Curr Map Netw | E43: na
B45: Historic Operating Expenditure (Opex)
C46: Historic Opex by Category - Summary | D46: HOE Sum | E46: 18
C47: Historic Opex by Category 2nd FY | D47: HOE 2ndt FY | E47: 19
B49: Historic Capital Expenditure (Capex)
C50: Historic Capex by Category | D50: HCE Cat | E50: 20
C51: Historic Capex by Asset Class | D51: HCE Ass Cls | E51: 21
C52: Historic Capex - Network | D52: HCE Netw | E52: 23
C53: Historic Capex - Non-Network | D53: HCE Non Netw | E53: 24
B55: Directors Responsibility Statement
C56: Directors Responsibility Statement | D56: DRS | E56: 25
B58: © Tasmanian Networks Pty Ltd 2018
B59: This work is copyright. Apart from any use as permitted under the Copyright Act 1968, no part of the work may be reproduced by any process without permission from Tasmanian Networks Pty Ltd.
B61: Tasmanian Networks Pty Ltd
B62: ABN 24 167 357 299
B64: Registered office | C64: 1-7 Maria Street
B65: and postal address | C65: Lenah Valley TAS 7008 Australia
B66: Telephone | C66: 1300 137 008
B67: Internet | C67: www.tasnetworks.com.au

Sheet ACC Pol
A2: SUMMARY OF SIGNIFICANT ACCOUNTING POLICIES
A4: The accounting policies adopted for TasNetworks' Transmission Network Service Provider Regulatory Financial Statements are the same as those identified in our audited financial report for the year ended 30 June 2018 with the following exceptions:
A6: (a) | B6: Property, plant and equipment
A8: Depreciation is calculated using the effective life of the asset that was provided in the most recent regulatory determination.
A10: Proceeds received on the disposal of assets are deducted from the written down value of the asset. Any remaining balance of the asset is depreciated over the remaining effective life of the asset. Any excess is recognised as income in the year it is received.
A12: (b) | B12: Customer contributions
A14: Customer contributions received for the construction of a prescribed asset are deducted off the cost of the asset for regulatory purposes as opposed to being treated as revenue under the accounting standards.

Sheet RFS Inc
A2: INCOME STATEMENT - PRESCRIBED TRANSMISSION SERVICES
A7: for the period ended: 30 June 2018
A9: Account code or reference to Account Code | C9: Description | D9: Disaggregation Statement - Prescribed Transmission Services | E9: Journal number | F9: Regulatory adjustments | G9: Regulatory financial statements | H9: Support reference
D10: $'000 | F10: $'000 | G10: $'000
F11: DR/(CR)
B13: Network charges | D13: ='DISAGG Inc'!F12 -> 178635.3151 | G13: =D13-F13 -> 178635.3151
B14: Gross proceeds from sale of assets | D14: ='DISAGG Inc'!F14 -> 0 | G14: =D14-F14 -> 0
B15: Other revenue (analysed as appropriate) | D15: ='DISAGG Inc'!F15+'DISAGG Inc'!F16+'DISAGG Inc'!F17 -> 7.46277 | G15: 7.46277
B17: Total Revenue | D17: =SUM(D13:D16) -> 178642.7779 | F17: =SUM(F12:F16) -> 0 | G17: =SUM(G12:G16) -> 178642.7779
B20: Opex costs
B21: - | C21: Field operations and maintenance | D21: =-'DISAGG Inc'!F23 -> 14075.70242 | G21: =D21+F21 -> 14075.70242
B22: - | C22: Transmission services | D22: =-'DISAGG Inc'!F25 -> 2746.421401 | G22: =D22+F22 -> 2746.421401
B23: - | C23: Customer and Asset management | D23: =-'DISAGG Inc'!F26 -> 1747.208643 | G23: 1747.208643
B24: - | C24: Corporate | D24: =-'DISAGG Inc'!F27 -> 5202.578934 | G24: 5202.578934
B25: - | C25: Transmission operations | D25: =-'DISAGG Inc'!F28 -> 4437.215618 | G25: 4437.215618
B26: - | C26: NCIPAP | D26: =-'DISAGG Inc'!F29 -> 0 | G26: 0
B27: Self Insurance | D27: 0 | E27: 79 | F27: ='PTS Adj'!D18 -> 765.7610615 | G27: =D27+F27 -> 765.7610615
B28: Depreciation | D28: =-'DISAGG Inc'!F31 -> 64338.98784 | E28: 80 | F28: =-'PTS Adj'!E24 -> -2949 | G28: =D28+F28 -> 61389.98784
B29: Book value of assets disposed | D29: =-'DISAGG Inc'!F33 -> 0 | F29: =-'PTS Adj'!E29 -> 0 | G29: =D29+F29 -> 0
B31: Earnings before Interest and Tax (EBIT) | D31: =D17-SUM(D18:D30) -> 86094.66304 | F31: =SUM(F18:F30) -> -2183.238938 | G31: =G17-SUM(G18:G30) -> 88277.90198
B35: Taxation | D35: =D31*0.3 -> 25828.39891 | F35: =F31*0.3 -> -654.9716815 | G35: =G31*0.3 -> 26483.37059
A38: Note:
A39: In addition it is mandatory to produce for each cost or revenue item that has been allocated to the Prescribed Services Segment a supporting workpaper that includes the following:
A40: a) the amounts that have been directly attributed to the Prescribed Services Segment
A41: b) the amounts that have been allocated to each Prescribed Services Segment
A42: c) a description of the allocation basis
A43: d) the numeric quantity of each allocator.

Sheet DISAGG Inc
A2: DISAGGREGATION STATEMENT - INCOME
A7: for the period ended: 30 June 2018
A9: Account code or reference to Account Code | C9: Description | D9: Audited financial statements | F9: Prescribed Transmission Services | G9: Negotiated Transmission Services | H9: Non-Regulated Transmission Services | I9: Not Allocated | J9: Workpaper reference
D10: $'000 | F10: $'000 | G10: $'000 | H10: $'000 | I10: $'000
B12: Regulated Transmission Charges | D12: 183429 | F12: 178635.3151 | G12: 4794.05257 | H12: 0 | I12: =D12-SUM(F12:H12) -> -0.3677
B13: Regulated Distribution Charges | D13: 260517 | F13: 0 | G13: 0 | H13: 0 | I13: =D13-SUM(F13:H13) -> 260517
B14: Gross proceeds from sale of assets | D14: 4588 | F14: 0 | G14: 0 | H14: 0 | I14: 4588
B15: Other revenue:
C16: Other services | D16: 31765 | F16: 7.46277 | G16: 0 | H16: 1646.29739 | I16: =D16-SUM(F16:H16) -> 30111.23984
C17: Customer Contributions | D17: 14372 | F17: 0 | G17: 936.25296 | H17: 0 | I17: 13435.74704
B20: Total Revenue | D20: =SUM(D12:D19) -> 494671 | F20: =SUM(F12:F19) -> 178642.7779 | G20: =SUM(G12:G19) -> 5730.30553 | H20: =SUM(H12:H19) -> 1646.29739 | I20: =SUM(I12:I19) -> 308651.6192
B22: Opex costs
B23: - | C23: Field operations and maintenance | D23: -14075.70242 | F23: =D23 -> -14075.70242 | G23: 0 | H23: 0 | I23: =D23-SUM(F23:H23) -> 0
B24: - | C24: Other direct costs | D24: =SUM(F24:I24) -> -8306.7238 | F24: 0 | G24: -669.58441 | H24: -3386.94214 | I24: -4250.19725
B25: - | C25: Transmission services | D25: =SUM(F25:I25) -> -3236.375678 | F25: -2746.421401 | G25: -131.2607969 | H25: -70.54888174 | I25: -288.1445983
B26: - | C26: Customer and asset management | D26: =SUM(F26:I26) -> -1924.684313 | F26: -1747.208643 | G26: -18.57623 | H26: -62.48647 | I26: -96.41297
B27: - | C27: Corporate | D27: -6949.397453 | F27: -5202.578934 | G27: -273.4217005 | H27: -521.8783099 | I27: -951.5185092 | P27: =O27+O28 -> 0
B28: - | C28: Transmission operations | D28: -5080.712659 | F28: -4437.215618 | G28: -124.7259847 | H28: -52.39427309 | I28: -466.3767835
B29: - | C29: NCIPAP expenses | D29: 0 | F29: 0 | G29: 0 | H29: 0 | I29: =D29-SUM(F29:H29) -> 0
B30: Distribution operating costs | D30: -127630.4037 | F30: 0 | G30: 0 | H30: 0 | I30: -127630.4037
B31: Depreciation | D31: -155562 | F31: -64338.98784 | G31: -2027.8385 | H31: -242.4865561 | I31: =D31-SUM(F31:H31) -> -88952.6871
B32: Loss on Revaluation of Assets | D32: -2122 | F32: =0 -> 0 | G32: 0 | H32: 0 | I32: =D32-SUM(F32:H32) -> -2122
B33: Book value of assets disposed | D33: -1619 | F33: 0 | G33: 0 | H33: 0 | I33: =D33-SUM(F33:H33) -> -1619
B35: Earnings before Interest and Tax (EBIT) | D35: =SUM(D20:D34) -> 168164 | F35: =SUM(F20:F34) -> 86094.66304 | G35: =SUM(G20:G34) -> 2484.897907 | H35: =SUM(H20:H34) -> -2690.439241 | I35: =SUM(I20:I34) -> 82274.87829
B37: Interest and dividend income | I37: =D37-SUM(H37) -> 0
B38: Finance charges | D38: -83550 | I38: =D38-SUM(H38) -> -83550
B40: Profit(loss) before Income Tax Expense | D40: =SUM(D35:D39) -> 84614
B42: Australian income tax expense | D42: -25384 | I42: =D42-H42 -> -25384
B43: Deferred income tax | I43: =D43-H43 -> 0
B44: Other income tax | I44: 0
B46: Profit(loss) after income tax expense | D46: =SUM(D40:D45) -> 59230
B48: Dividends paid | I48: =D48-H48 -> 0
B50: Retained Profit(Loss) | D50: =SUM(D46:D49) -> 59230
A53: Note:
A54: In addition it is mandatory to produce for each cost or revenue item that has been allocated to the Prescribed Services Segment a supporting workpaper that includes the following:
A55: a) the amounts that have been directly attributed to the Prescribed Services Segment
A56: b) the amounts that have been allocated to the Prescribed Services Segment
A57: c) a description of the allocation basis
A58: d) the numeric quantity of each allocator.

Sheet DISAGG Opex
A2: OPERATIONS AND MAINTENANCE EXPENDITURE
A7: for the period ended: 30 June 2018
A9: Account code or reference to account code | D9: Account Heading | G9: Ticks to indicate which rows are intersegmental costs | I9: Prescribed Transmission Services | J9: Negotiated Transmission Services | K9: Non-Regulated Transmission Services | L9: Not Allocated | M9: Total
I10: $'000 | J10: $'000 | K10: $'000 | L10: $'000 | M10: $'000
D12: Directly Attributed Costs
D13: Opex costs
D14: Field operations and maintenance | I14: =-'DISAGG Inc'!F23 -> 14075.70242 | J14: =-'DISAGG Inc'!G23 -> 0 | K14: =-'DISAGG Inc'!H23 -> 0 | L14: =-'DISAGG Inc'!I23 -> 0 | M14: =SUM(I14:L14) -> 14075.70242
D15: Other operating costs | I15: 0 | J15: =-'DISAGG Inc'!G24 -> 669.58441 | K15: =-'DISAGG Inc'!H24 -> 3386.94214 | L15: =-'DISAGG Inc'!I24 -> 4250.19725 | M15: =SUM(I15:L15) -> 8306.7238
G17: Subtotal of Directly Attributed costs | I17: =SUM(I14:I16) -> 14075.70242 | J17: =SUM(J14:J16) -> 669.58441 | K17: =SUM(K14:K16) -> 3386.94214 | L17: =SUM(L14:L16) -> 4250.19725 | M17: =SUM(M14:M16) -> 22382.42622
D19: Allocated Costs | E19: Basis of allocation | G19: Work paper Ref.**
D20: Transmission services | E20: Causal | G20: DISAGG Aloc1 | I20: =-'DISAGG Inc'!F25 -> 2746.421401 | J20: =-'DISAGG Inc'!G25 -> 131.2607969 | K20: =-'DISAGG Inc'!H25 -> 70.54888174 | L20: =-'DISAGG Inc'!I25 -> 288.1445983 | M20: =SUM(I20:L20) -> 3236.375678
D21: Customer and Asset management | E21: Causal | G21: DISAGG Aloc1 | I21: =-'DISAGG Inc'!F26 -> 1747.208643 | J21: =-'DISAGG Inc'!G26 -> 18.57623 | K21: =-'DISAGG Inc'!H26 -> 62.48647 | L21: =-'DISAGG Inc'!I26 -> 96.41297 | M21: =SUM(I21:L21) -> 1924.684313
D22: Corporate | E22: Causal & Non-Causal | G22: DISAGG Aloc1 & 2 | I22: =-'DISAGG Inc'!F27 -> 5202.578934 | J22: =-'DISAGG Inc'!G27 -> 273.4217005 | K22: =-'DISAGG Inc'!H27 -> 521.8783099 | L22: =-'DISAGG Inc'!I27 -> 951.5185092 | M22: 6949.397453
D23: Transmission operations | E23: Causal | G23: DISAGG Aloc1 | I23: =-'DISAGG Inc'!F28 -> 4437.215618 | J23: =-'DISAGG Inc'!G28 -> 124.7259847 | K23: =-'DISAGG Inc'!H28 -> 52.39427309 | L23: =-'DISAGG Inc'!I28 -> 466.3767835 | M23: 5080.712659
G26: Subtotal of Allocated costs | I26: =SUM(I19:I24) -> 14133.4246 | J26: =SUM(J19:J24) -> 547.9847121 | K26: =SUM(K19:K24) -> 707.3079347 | L26: =SUM(L19:L24) -> 1802.452861 | M26: =SUM(M19:M24) -> 17191.1701
G28: Total Opex Costs per DISAGG Inc | I28: =I17+I26 -> 28209.12702 | J28: =J17+J26 -> 1217.569122 | K28: =K17+K26 -> 4094.250075 | L28: =L17+L26 -> 6052.650111
L31: Total | M31: =M17+M26 -> 39573.59632
A34: Explanation of opex costs required by the Commission (for example, bushfire costs, insurance etc)
C41: * | D41: Delete as appropriate
C42: ** | D42: For each Account Heading item subject to Causal allocation, ensure that it is included on a workpaper Aloc 1
D43: For each Account Heading item subject to Non-Causal allocation, ensure that it is included on a workpaper Aloc 2
C44: Note: Where Intersegmental costs arise, the total costs of all Business Segments will be greater than the costs in the Base Accounts. This is why the reconciliation to the Base Accounts is required on this schedule.

Sheet Ls_XLB_WorkbookFile (hidden)

Sheet Ls_AgXLB_WorkbookFile (hidden)

Sheet DISAGG Aloc1
A2: CAUSAL ALLOCATION
A7: for the period ended: 30 June 2018
A9: A copy of this workpaper is to be produced for each Causal basis that has been used to allocate costs between Business Segments.
B11: 1. Causal basis of allocation - network overheads and some corporate overheads
B13: 2. Complete the table set out below to indicate:
B14: - the Account Headings and the amounts subject to this Causal basis; and
B15: - the description and quanta of allocator that has been used
A17: Account code or reference to account code | B17: Account Heading | D17: Prescribed Transmission Services | E17: Negotiated Transmission Services | F17: Non-Regulated Transmission Services | G17: Not Allocated | H17: Total
B19: For each Account Heading that has been
B20: allocated on this basis, provide the following information
B22: NETWORK OVERHEADS
B23: Transmission Services - Direct Hours | D23: 47275.72 | E23: 801.11 | F23: 1613.78 | G23: 10.83
B24: Customer and Asset management - ABC Survey | D24: 0.09889127005 | E24: 0.001051406759 | F24: 0.003536707767 | G24: 0.005456933315
B25: Transmission Operations - ABC Survey | D25: 0.1759067818 | E25: 0.004617732411 | F25: 0.0003315536694 | G25: 0.01683432704
B27: Corresponding cost allocation ($'000) | D27: ='DISAGG Opex'!I20+'DISAGG Opex'!I21+'DISAGG Opex'!I23 -> 8930.845662 | E27: ='DISAGG Opex'!J21+'DISAGG Opex'!J20+'DISAGG Opex'!J23 -> 274.5630116 | F27: ='DISAGG Opex'!K20+'DISAGG Opex'!K21+'DISAGG Opex'!K23 -> 185.4296248 | G27: ='DISAGG Opex'!L20+'DISAGG Opex'!L21+'DISAGG Opex'!L23 -> 850.9343518 | H27: =SUM(D27:G27) -> 10241.77265
B29: CORPORATE OVERHEADS
B30: General Counsel - ABC Survey | D30: 0.07859607046 | E30: 0.009247256951 | F30: 0.01576098602 | G30: 0.0659623904
B31: Facilities - ABC Survey | D31: 0.2105268444 | E31: 0.004266622384 | F31: 0.006244778632 | G31: 0.0069129612
B32: IT - IT applications, PC's & mobile devices | D32: 0.2127735971 | E32: 0 | F32: 0.00455851386 | G32: 0.002091299086
B33: Strategy & Stakeholder Relations - ABC Survey | D33: 0.1851772951 | E33: 0.008377558233 | F33: 0.01651500078 | G33: 0.02735358139
B34: People & Performance - FTE Headcount | D34: 0.1747243316 | E34: 0.01039143874 | F34: 0.01068976973 | G34: 0.04235236456
B35: Compliance and Risk - Asset allocation | D35: 0.1354978842 | E35: 0.007043367838 | F35: 0.005517495406 | G35: 0.01521001565
B37: Corresponding cost allocation ($'000) | D37: 3395.072065 | E37: 74.4945 | F37: 123.25411 | G37: 555.43106 | H37: =SUM(D37:G37) -> 4148.251735
B42: 3. Provide a detailed description and explanation of the basis of allocation:
B44: Allocation as per the Cost Allocation Methodology:
B45: Network Overheads:
B46: Transmission Services management costs (overheads) are allocated on the basis of direct labour hours via timesheet entry.
B47: Customer and Asset Management as well as Transmission Operations are allocated on the basis of Activity Based Costing (ABC) Survey using estimated staff effort.
B49: Corporate Overheads:
B50: Where a cost driver has been identified (above) the costs have been allocated based on the cost driver.

Sheet DISAGG Aloc2
A2: NON-CAUSAL ALLOCATION
A7: for the period ended: 30 June 2018
A9: A copy of this workpaper is to be produced for each Non-causal basis that has been used to allocate costs between Business Segments.
B11: 1. Non-causal basis of allocation for corporate overhead
B13: 2. Complete the table set out below to indicate the Account Headings and the amounts subject to this non-causal basis.
A15: Account code or reference to account code | B15: Account Heading | D15: Prescribed Transmission Services | E15: Negotiated Transmission Services | F15: Non-Regulated Transmission Services | G15: Not Allocated | H15: Total
D16: $'000 | E16: $'000 | F16: $'000 | G16: $'000 | H16: $'000
B18: (List all Account Headings that have been allocated on this basis)
B20: Weighted Average Costs | D20: ='DISAGG Opex'!I22-'DISAGG Aloc1'!D37 -> 1807.506869 | E20: ='DISAGG Opex'!J22-'DISAGG Aloc1'!E37 -> 198.9272005 | F20: ='DISAGG Opex'!K22-'DISAGG Aloc1'!F37 -> 398.6241999 | G20: ='DISAGG Opex'!L22-'DISAGG Aloc1'!G37 -> 396.0874492 | H20: =SUM(D20:G20) -> 2801.145718
B24: 3. Provide a detailed description and explanation of the basis of allocation:
B27: These corporate costs which don't have a causal driver such as the Board, the CEO, Finance the company secretary are allocated on a weighted average basis.
B31: 4. Explain why no causal basis could be established:
B34: These general business costs have no causal driver to directly allocate and the ABC Survey is not a practical as there is not a direct link between the effort and the service.
B39: 5. Explain the reasons for choosing this non-causal basis and why it was preferred over others:
B42: The weighted average methodoly applies the non causal costs based on the weighted average of costs already allocated. This methodology was selected as it aligns these costs with the effort in the business.
B46: 6. Date on which the Commission/AER granted approval:
B49: The CAM received approval from the AER on 26th June 2015

Sheet PTS Adj
A2: REGULATORY ADJUSTMENT JOURNALS - PRESCRIBED TRANSMISSION SERVICES
A7: for the period ended: 30 June 2018
A9: Journal | B9: Account Debited | D9: Amount | F9: Supporting
A10: number | C10: Account Credited | D10: Debit | E10: Credit | F10: Statement
D11: $'000 | E11: $'000 | F11: No.
A12: Journals 1-78 have been provided in previous years regulatory financial statements.
C15: Current Year Journals
A18: 79 | B18: Self Insurance | D18: 765.7610615
C19: Provision for self insurance | E19: =D18 -> 765.7610615
B20: (Self Insurance allowance for the year 2017-18)
A23: 80 | B23: Property, Plant & Equipment | D23: 2949
C24: Retained Profits | E24: 2949
B25: (Difference in depreciation and amortisation for regulatory purposes 2017-18)
A42: Note:
A43: This schedule must contain for each Regulatory Adjustment made on
A44: the Income Statement, the following:
A45: a) a journal entry showing accounts debited and credited
A46: b) an explanation of why the adjustment has been made.

Sheet PTS PriceRedn
A2: PRICE REDUCTION/RECOVERY - PRESCRIBED TRANSMISSION SERVICES
A7: for the period ended: 30 June 2018
B9: $Customer TUOS | C9: $Common service
B10: general charges | C10: charges
A11: Reduction in prices payable
A12: by transmission customers
A17: Total Reduction | B17: =SUM(B11:B16) -> 0 | C17: =SUM(C11:C16) -> 0
A19: *Recovery of above reduction in prices
A20: from other transmission customers
A23: Total Recovery | B23: =SUM(B20:B22) -> 0 | C23: =SUM(C20:C22) -> 0
A26: Note:
A27: Each instance of a price reduction/recovery should be detailed.
A28: *The amount of any reduction in a transmission customer's Customer TUOS general charges
A29: and/or common service charges recovered from other transmission customers under clause 6A.26.1
A30: of the Rules.

Sheet PTS PDisc
A2: PRUDENT DISCOUNTS - PRESCRIBED TRANSMISSION SERVICES
A7: for the period ended: 30 June 2018
B12: Number of discounts recovered in previous year
A13: For each discount recovered:
B14: Date of AER approval, if given | D14: Not Applicable to TasNetworks
B15: Expiry date
B16: Party receiving the discount
B17: Beneficiary of discount
B18: Amount of discount offered in previous year
B19: Amount recovered from the other custumers in previous year
B20: Load subject to discount (max, min, average)
A21: For each discount approved by the AER:
B22: Compliance with conditions - for each condition imposed provide information demonstrating that the condition has been met.

Sheet PTS Rev
A2: REVENUE ANALYSIS - PRESCRIBED TRANSMISSION SERVICES
A7: for the period ended: 30 June 2018
A9: Account code or reference | B9: Tariff Category | D9: Amount of electricity transmitted | E9: Revenue
D10: GWh | E10: $'000
A12: Not Required - Duplicated in Economic Benchmarking RIN
C19: Total

Sheet PTS Asset Aging
A2: ASSET AGING SCHEDULE - PRESCRIBED TRANSMISSION SERVICES
A7: All asset values are net regulatory values
F10: Useful life remaining (years after Regulatory Accounting Date)
C11: Total | D11: 1-5 | E11: 6-10 | F11: 11-15 | G11: 16-20 | H11: >20
A12: Asset class | C12: $'000 | D12: $'000 | E12: $'000 | F12: $'000 | G12: $'000 | H12: $'000
A15: Not Required - Duplicated in Category Analysis RIN
B22: Total net regulatory value

Sheet DISAGG ProvSum
A2: SUMMARY OF PROVISIONS
A7: for the period ended: 30 June 2018
D9: Prescribed Transmission Services | E9: Negotiated Transmission Services | F9: Non-Regulated Transmission Services | G9: Not Allocated | H9: Total
D10: $'000 | E10: $'000 | F10: $'000 | G10: $'000 | H10: $'000
B12: Amount set aside to provisions | D12: 4294.727137 | E12: 130.4411346 | F12: 274.2961447 | G12: 0 | H12: =SUM(D12:G12) -> 4699.464417
B14: Expenditure incurred debited to provisions | D14: -4790.43322 | E14: -145.4969138 | F14: -305.9559598 | G14: 0 | H14: =SUM(D14:G14) -> -5241.886094
B16: Amounts written back from provisions | D16: =-D20+D22-D12-D14 -> -3470.556872 | E16: =-E20+E22-E12-E14 -> 439.3223137 | F16: =-F20+F22-F12-F14 -> -230.3148484 | G16: 0 | H16: -3261.549406
H17: 0
B18: Net movement in provisions | D18: =SUM(D12:D17) -> -3966.262954 | E18: =SUM(E12:E17) -> 424.2665344 | F18: -261.9746635 | G18: =SUM(G12:G17) -> 0 | H18: -3803.971083
B20: Balance at start of period | D20: 37964.72866 | E20: 608.3481809 | F20: 2433.392724 | G20: 0 | H20: =SUM(D20:G20) -> 41006.46957
B22: Balance at end of period | D22: 33998.46571 | E22: 1032.614715 | F22: 2171.41806 | G22: 0 | H22: =SUM(H18:H21) -> 37202.49849
A24: Comprising:
B26: Current provisions | D26: 5676.874373 | E26: 172.4202517 | F26: 362.571289 | G26: 0 | H26: =SUM(D26:G26) -> 6211.865913
B27: Non-current provision | D27: =D29-D26 -> 28321.59134 | E27: =E29-E26 -> 860.1944637 | F27: 1808.846771 | G27: 0 | H27: =SUM(D27:G27) -> 30990.63257
C29: Total per balance sheet | D29: =D22 -> 33998.46571 | E29: =E22 -> 1032.614715 | F29: 2171.41806 | G29: =G22 -> 0 | H29: =SUM(H24:H28) -> 37202.49849
A32: Note:
A33: In addition it is mandatory to produce for each item that has been allocated to the Prescribed Services
A34: Segment a supporting workpaper that includes the following:
A35: a) the amounts that have been directly attributed to the Prescribed Services Segment
A36: b) the amounts that have been allocated to the Prescribed Services Segment
A37: c) a description of the allocation basis
A38: d) the numeric quantity of each allocator.
A40: The basis of attribution of provisions to the Prescribed Services Segment, should follow the attribution of the
A41: expenses to which they relate. Taxation, interest and dividend provisions should be attributed to the Not Allocated Segment.

Sheet PTS ProvRec
A2: PROVISIONS RECONCILIATION - PRESCRIBED TRANSMISSION SERVICES
A7: for the period ended: 30 June 2018
C9: Description | D9: Discretionary Heading for each Material Provision | I9: Others | J9: Total
D11: $'000 | E11: $'000 | F11: $'000 | G11: $'000 | H11: $'000 | I11: $'000 | J11: $'000
A13: Balance at start of period
A15: Amount set aside to provisions | D15: Not required - Duplicated in Economic Benchmarking RIN
A17: Expenditure incurred debited to provisions
A19: Amounts written back from provisions
A22: Balance at end of period
A26: Net Movement in provisions per RFS FPerf
A29: Note:
A30: In addition it is mandatory to produce for each item that has been allocated to the Prescribed Services Segment a
A31: supporting workpaper that includes the following:
A32: a) the amounts that have been directly attributed to the Prescribed Services Segment
A33: b) the amounts that have been allocated to the Prescribed Services Segment
A34: c) a description of the allocation basis
A35: d) the numeric quantity of each allocator.
A37: The basis of attribution of provisions to the Prescribed Services Segment, should follow the attribution of the expenses to
A38: which they relate. Taxation, interest and dividend provisions should be attributed to the Not Allocated Segment.

Sheet INF RelPartTrans
A2: RELATED PARTY TRANSACTIONS
A7: for the period ended: 30 June 2018
A9: Details of related party | B9: Description of transaction | C9: Prescribed | D9: Procurement process | E9: Monetary value of transaction
E10: $'000
B12: Revenue
B15: Expense
B18: Capital
A22: Balances with related parties at regulatory accounting date
E23: $'000
B25: Current assets
B27: Non-current assets
B29: Total assets
B31: Current liabilities
B33: Non-current liabilities
B35: Total liabilities
A37: Commitments with related parties at regulatory accounting period
A38: Value of commitments with related parties that are expected to result in related party transactions in future regulatory accounting periods:
C39: Recognised as liabilities | D39: Not recognised as liabilities | E39: Total
C40: $'000 | D40: $'000 | E40: $'000
B42: Payable:
B43: Not later than one year
B44: Later than one year and not later than five years
B45: Later than five years
B47: Total commitments

Sheet INF RevRec
A2: REVENUE RECONCILIATION
A7: for the period ended: 30 June 2018
B9: Description | D9: Unit type | E9: Unit
B12: CPI (March Tx) | D12: CPI – All Groups Weighted Average of 8 Capital Cities (ABS) | E12: 104.8 | F12: Dec 2013 qtr
B13: CPI (March Tx+1) | D13: As above | E13: 110 | F13: Dec 2016 qtr
B14: Change in CPI | D14: Per cent | E14: 2.38
B15: X-factor | D15: Per cent | E15: 2.5
B16: AR (Tx) | D16: $ | E16: 172340118 | F16: AER Final Decision PTRM, 2016
B17: AR (Tx+1) | D17: $ | E17: 168566944
B18: S-factor (Tx) | D18: $+ | E18: 1136743 | F18: STPIS & Network Support
B19: Other pass through | D19: $+ | E19: 2563963
B20: Sub-total | E20: =SUM(E17:E19) -> 172267650
B21: PY Under/over recovery | D21: $+ | E21: -2752760
B22: CY adj (incl. forecast settlement residue) | D22: $+ | E22: -7400000
B23: Net load export charge | D23: $+ | E23: -4054753
B24: Revenue Cap Tx+1 | D24: $ | E24: =SUM(E20:E23) -> 158060137 | F24: 2017/18

Sheet Historic Opex Summary
B2: HISTORIC OPEX by expenditure category
B13: $ million nominal | C13: Financial year | D13: Any part years | E13: Year 1 | F13: Year 2 | G13: Year 3 | H13: Year 4 | I13: Year 5 | J13: Total | K13: Revenue Cap Allowance | L13: Key cost drivers and explanation for material differences over time
B14: System Recurrent
B15: Maintenance
B16: Secondary Systems
B17: Labour
B18: Materials
B19: Sub-Totals
B20: Substations
B21: Labour | C21: Not Required - Duplicated in Category Analysis RIN & Economic Benchmarking RIN
B22: Materials
B23: Sub-Totals
B24: Lines
B25: Labour
B26: Materials
B27: Sub-Totals
B28: Communications
B29: Labour
B30: Materials
B31: Sub-Totals
B32: Easements
B33: Labour
B34: Materials
B35: Sub-Totals
B36: Summary
B37: Sub-Total Labour
B38: Sub-Total Materials
B39: Total Maintenance
B40: Asset Management Support
B41: Operations
B42: OHS
B43: Taxes and Charges
B44: Insurance
B45: Total System Recurrent
B46: System Non-Recurrent
B47: Asset Works Program
B48: Asset Management Support
B49: Total System Non-Recurrent
B50: Non-System
B51: Finance
B52: HR
B53: IT
B54: Other
B55: Total Non-System
B56: Summary
B57: Total Labour
B58: Total Maintenance Materials
B59: Total Other Materials
B60: TOTAL OPEX
B62: Grand Total
B64: Revenue Cap Allowance

Sheet Historic Opex by Category
B2: HISTORIC OPEX by expenditure category
D13: Year 2
D14: Field Maintenance
B15: $ million, nominal | D15: Routine | E15: Condition-Based | F15: Corrective | H15: TOTAL | J15: Revenue Cap Allowance | L15: Key cost drivers and explanation for material differences over time
B16: System Recurrent
B17: Maintenance
B18: Secondary Systems
B19: Labour
B20: Materials
B21: Sub-Totals
B22: Substations
B23: Labour
B24: Materials
B25: Sub-Totals
B26: Lines
B27: Labour
B28: Materials
B29: Sub-Totals
B30: Communications
B31: Labour
B32: Materials | C32: Not Required - Duplicated in Category Analysis RIN and Economic Benchmarking RIN
B33: Sub-Totals
B34: Easements
B35: Labour
B36: Materials
B37: Sub-Totals
B38: Summary
B39: Sub-Total Labour
B40: Sub-Total Materials
B41: Total Maintenance
B42: Asset Management Support
B43: Operations
B44: OHS
B45: Taxes and Charges
B46: Insurance
B47: Total System Recurrent
B48: System Non-Recurrent
B49: Asset Works Program
B50: Asset Management Support
B51: Total System Non-Recurrent
B52: Non-System
B53: Finance
B54: HR
B55: IT
B56: Other
B57: Total Non-System
B58: Summary
B59: Total Labour
B60: Total Maintenance Materials
B61: Total Other Materials
B62: TOTAL OPEX
B65: Grand Total
B67: Revenue Cap Allowance

Sheet Historic Capex by Category
B2: HISTORIC CAPEX by project category
A6: Not Required - Duplicated in Category Analysis RIN
A14: $M nominal
A16: Project Category | F16: Any Part Year | G16: Year 1 | H16: Year 2 | I16: Year 3 | J16: Year 4 | K16: Year 5 | L16: TOTAL
A18: NETWORK
A19: NON-LOAD DRIVEN | B19: Replacements
B21: Security/Compliance
B23: Other
A25: NON NETWORK
A26: BUSINESS IT | C26: Information Technology
A28: SUPPORT THE BUSINESS | C28: Buildings
C30: Motor Vehicles
C32: Other
A35: TOTAL FDC
A36: TOTAL HISTORIC CAPEX

Sheet Hist Capex by Asset Class
B2: HISTORIC CAPEX by asset class
A5: Actual Gross Capital Expenditure – As Incurred ($m Nominal) incl NCIPAP | M5: Actual Gross NCIPAP Capital Expenditure – As Incurred ($m Nominal)
D6: 2013-14 | E6: 2014-15 | F6: 2015-16 | G6: 2016-17 | H6: 2017-18 | I6: 2018-19 | N6: 2013-14 | O6: 2014-15 | P6: 2015-16 | Q6: 2016-17 | R6: 2017-18 | S6: 2018-19
A7: Asset Class
B8: Transmission Lines And Cables - 60Yrs | C8: Transmission Lines And Cables - 60Yrs | D8: 22.778164 | E8: 1.756107749 | F8: 3.28267815 | G8: 6.277840118 | H8: 8.848796856 | M8: Transmission Lines And Cables - 60Yrs | O8: 0 | P8: 0 | Q8: 0.07423266986 | R8: 0
B9: Transmission Lines And Cables - 45Yrs | C9: Transmission Lines And Cables - 45Yrs | D9: 0.113544 | E9: 0.6866957392 | F9: 0.9248934051 | G9: 6.591623635 | H9: 7.718726153 | M9: Transmission Lines And Cables - 45Yrs | O9: 0.07766615 | P9: 0.1800711564 | Q9: 0.5454325024 | R9: 0.1045225231
B10: Transmission Lines And Cables - 10Yrs | C10: Transmission Lines And Cables - 10Yrs | D10: 0.466244 | E10: 0.1276086124 | F10: 0.1744711695 | G10: 9.230056003 | H10: 9.467468968 | M10: Transmission Lines And Cables - 10Yrs | O10: 0 | P10: 0.1158500256 | Q10: 0.9105121815 | R10: 0.1765530087
B11: Transmission Substations - 60Yrs | C11: Transmission Substations - 60Yrs | D11: 8.233956 | E11: 4.780899154 | F11: 1.50778175 | G11: 2.421602488 | H11: 1.505037854 | M11: Transmission Substations - 60Yrs | O11: 0 | P11: 0.014631318 | Q11: 0.1168024007 | R11: 0.02237469636
B12: Transmission Substations - 45Yrs | C12: Transmission Substations - 45Yrs | D12: 22.782576 | E12: 7.948113951 | F12: 4.045531012 | G12: 11.39932488 | H12: 11.66934441 | M12: Transmission Substations - 45Yrs | O12: 0.00949739 | P12: 0.61624903 | Q12: 0.4165045395 | R12: 0.0979148918
B13: Transmission Substations - 15Yrs | C13: Transmission Substations - 15Yrs | D13: 3.377145 | E13: 1.176664947 | F13: 0.6882824451 | G13: 0.3032971161 | H13: 0.2879817774 | M13: Transmission Substations - 15Yrs | O13: 0.13943455 | P13: 0.24872168 | Q13: 0 | R13: 0
B14: Protection And Control - 15Yrs | C14: Protection And Control - 15Yrs | D14: 14.167741 | E14: 4.473020641 | F14: 4.004121853 | G14: 2.752846769 | H14: 0.6780532391 | M14: Protection And Control - 15Yrs | O14: 0.02097434 | P14: 0.25984871 | Q14: 0.03011316 | R14: 0
B15: Protection And Control - 4Yrs | C15: Protection And Control - 4Yrs | D15: 0.099853 | E15: -0.0168982 | F15: 0 | G15: 0 | H15: 0 | M15: Protection And Control - 4Yrs | O15: 0 | P15: 0 | Q15: 0 | R15: 0
B16: Transmission Operations - 10Yrs | C16: Transmission Operations - 10Yrs | D16: 1.411877 | E16: 0.6102501768 | F16: 4.35188126 | G16: 6.591114818 | H16: 5.916845741 | M16: Transmission Operations - 10Yrs | O16: 0 | P16: 0.03462396 | Q16: -0.00153876 | R16: 0
B17: Transmission Operations - 4Yrs | C17: Transmission Operations - 4Yrs | D17: 0.01511 | E17: 0 | F17: 0 | G17: 0.2947817623 | H17: 0.2885804181 | M17: Transmission Operations - 4Yrs | O17: 0 | P17: 0 | Q17: 0 | R17: 0
B18: Other - 40Yrs | C18: Other - 40Yrs | D18: 1.147401 | E18: 0.245294949 | F18: 0.0757287386 | G18: 0.9383810939 | H18: 0.7186779259 | M18: Other - 40Yrs | O18: 0 | P18: 0 | Q18: 0 | R18: 0
B19: Other - 9Yrs | C19: Other - 9Yrs | D19: 0.572312 | E19: 0.9443132026 | F19: 4.702744986 | G19: 0.6544342092 | H19: 1.041582345 | M19: Other - 9Yrs | O19: 0 | P19: 0 | Q19: 0 | R19: 0
B20: Other - 4Yrs | C20: Other - 4Yrs | D20: 1.525094 | E20: 2.157794696 | F20: 0.9826983398 | G20: 3.428457074 | H20: 3.751710284 | M20: Other - 4Yrs | O20: 0 | P20: 0 | Q20: 0 | R20: 0
B21: Communications - 45Yrs | C21: Communications - 45Yrs | D21: 0 | E21: 0.006107073485 | F21: 0 | G21: 0 | H21: 0 | M21: Communications - 45Yrs | O21: 0 | P21: 0 | Q21: 0 | R21: 0
B22: Communications - 10Yrs | C22: Communications - 10Yrs | D22: 0 | E22: 0.04593307339 | F22: 0 | G22: 0 | H22: 0 | M22: Communications - 10Yrs | O22: 0 | P22: 0 | Q22: 0 | R22: 0
B23: Communications - 5Yrs | C23: Communications - 5Yrs | D23: 0 | E23: 0.0114 | F23: 0 | G23: 0 | H23: 0 | M23: Communications - 5Yrs | O23: 0 | P23: 0 | Q23: 0 | R23: 0
B24: Land and Buildings | C24: Land and Buildings | D24: 0.084627 | E24: 0.08546987898 | F24: 0.08878563185 | G24: 0.07753090487 | H24: 0.09547985002 | M24: Land and Buildings | O24: 0 | P24: 0 | Q24: 5.591614e-05 | R24: 0
B25: Equity Raising | C25: Equity Raising | D25: 0 | E25: 0 | F25: 0 | G25: 0 | H25: 0 | M25: Equity Raising | O25: 0 | P25: 0 | Q25: 0 | R25: 0
J26: Total Yrs 1-5 | K26: Total | T26: Total Yrs 1-5 | U26: Total
B27: Sub total | D27: =SUM(D8:D26) -> 76.775644 | E27: =SUM(E8:E26) -> 25.03877564 | F27: =SUM(F8:F26) -> 24.82959874 | G27: 50.96129088 | H27: 51.98828583 | I27: =SUM(I8:I26) -> 0 | J27: =SUM(E27:I27) -> 152.8179511 | K27: =SUM(D27:I27) -> 229.5935951 | M27: Sub total | N27: =SUM(N8:N26) -> 0 | O27: =SUM(O8:O26) -> 0.24757243 | P27: =SUM(P8:P26) -> 1.46999588 | Q27: 2.09211461 | R27: 0.40136512 | S27: 0 | T27: =SUM(O27:S27) -> 4.21104804 | U27: =SUM(N27:S27) -> 4.21104804
A30: Notes: - Exclude half year rate of return. Inputs are assumed to be in middle of year terms because actual capex is reported evenly over a financial year. - The asset classes inputed by each TNSP must be the same as those used in the RFM/PTRM. - Yr -1 is the final year of the previous regulatory control period. - Capex should be adjusted for any movements in capitalised provisions and be net of customer contributions. Where relevant please note the amount of any customer contributions excluded. - TNSPs are to update capex as incurred for previous years of the regulatory control period to reflect any movements that may have occurred (e.g. due to the final commissioning of assets). When this information is updated TNSPs must also note the reason for the movement. - Where capex related to Network Capability Incentive Parameter Action Plan (NCIPAP) projects has been incurred and reported across asset classes, the total amount for each project should be noted. | M30: Actual Gross NCIPAP Capital Expenditure – As Incurred ($m Nominal)
N31: 2013-14 | O31: 2014-15 | P31: 2015-16 | Q31: 2016-17 | R31: 2017-18 | S31: 2018-19
M33: Weather Station refurbishment program | O33: 0.13943455 | P33: 0.24872168 | Q33: 0.23298944 | R33: 0.18066497
M34: ND1246 Substandard Clearances Rectification | O34: 0 | P34: 0.25 | Q34: 0.735 | R34: 0
M35: ND1346 George Town Automatic Voltage Control | O35: 0 | P35: 0.03462396 | Q35: -0.00153876 | R35: 0.01777022
M36: ND1351 Implementation of dynamic rating | O36: 0.01302081 | P36: 0.0118018 | Q36: 0.0176984 | R36: 0
M37: ND1363 TL Dead End Assembly Upgrade Prog Stg 2 | O37: 0.07766615 | P37: 0.03157489 | Q37: 0.16677003 | R37: 0.15020915
M38: ND1364 Power Transformer Dynamic Rating Progra | O38: 0.00795353 | P38: 0.24804691 | Q38: 0 | R38: 0.00144272
M39: ND1365 Line Fault Indicator Comms Program | O39: 0 | P39: 0.02698114 | Q39: 0.01683677 | R39: 0.05127806
M40: ND1366 Sheffield Sub 220kV K and L Bay Upgrade | O40: 0.00744053 | P40: 0.26112181 | Q40: 0.84447853 | R40: 0
A41: Actual Asset Disposal – As Incurred ($m Nominal) | M41: ND1367 Castle Forbes Bay Tee disconnector upgr | O41: 0.00205686 | P41: 0.30385508 | Q41: 0 | R41: 0
D42: 2013-14 | E42: 2014-15 | F42: 2015-16 | G42: 2016-17 | H42: 2017-18 | I42: 2018-19 | M42: ND1372 Modern fault location functionality | O42: 0 | P42: 0.05316061 | Q42: 0.0798802 | R42: 0 | T42: Total Yrs 1-5 | U42: Total
A43: Asset Class | M43: Sub total | N43: =SUM(N33:N42) -> 0 | O43: 0.24757243 | P43: 1.46988788 | Q43: 2.09211461 | R43: 0.40136512 | S43: 0 | T43: =SUM(O43:S43) -> 4.21094004 | U43: =SUM(N43:S43) -> 4.21094004
B44: Transmission Lines And Cables - 60Yrs | E44: 0 | F44: 0 | G44: 0 | H44: 0
B45: Transmission Lines And Cables - 45Yrs | E45: 0 | F45: 0 | G45: 0 | H45: 0
B46: Transmission Lines And Cables - 10Yrs | E46: 0 | F46: 0 | G46: 0 | H46: 0
B47: Transmission Substations - 60Yrs | E47: 0 | F47: 0 | G47: 0 | H47: 0
B48: Transmission Substations - 45Yrs | E48: 0 | F48: 0 | G48: 0 | H48: 0
B49: Transmission Substations - 15Yrs | E49: 0 | F49: 0 | G49: 0 | H49: 0
B50: Protection And Control - 15Yrs | E50: 0 | F50: 0 | G50: 0 | H50: 0
B51: Protection And Control - 4Yrs | E51: 0 | F51: 0 | G51: 0 | H51: 0
B52: Transmission Operations - 10Yrs | E52: 0 | F52: 0 | G52: 0 | H52: 0
B53: Transmission Operations - 4Yrs | E53: 0 | F53: 0 | G53: 0 | H53: 0
B54: Other - 40Yrs | E54: 0 | F54: 0 | G54: 0 | H54: 0
B55: Other - 9Yrs | E55: -0.027 | F55: -0.0006 | G55: -0.01478723 | H55: -0.02393291
B56: Other - 4Yrs | E56: 0 | F56: 0 | G56: 0 | H56: 0
B57: Communications - 45Yrs | E57: 0 | F57: 0 | G57: 0 | H57: 0
B58: Communications - 10Yrs | E58: 0 | F58: 0 | G58: 0 | H58: 0
B59: Communications - 5Yrs | E59: 0 | F59: 0 | G59: 0 | H59: 0
B60: Land and Buildings | E60: 0 | F60: 0 | G60: 0 | H60: 0
B61: Equity Raising | E61: 0 | F61: 0 | G61: 0 | H61: 0 | J61: Total Yrs 1-5 | K61: Total
B62: Sub total | D62: =SUM(D44:D61) -> 0 | E62: =SUM(E44:E61) -> -0.027 | F62: =SUM(F44:F61) -> -0.0006 | G62: =SUM(G44:G61) -> -0.01478723 | H62: -0.02393291 | I62: 0 | J62: =SUM(E62:I62) -> -0.06632014 | K62: =SUM(D62:I62) -> -0.06632014
A64: Notes: - Exclude half year rate of return. Inputs are assumed to be in middle of year terms because actual disposal is reported evenly over a financial year. - The asset classes inputed by each TNSP must be the same as those used in the RFM/PTRM. - Yr -1 is the final year of the previous regulatory control period.
A67: Actual Gross Capital Expenditure – As Commissioned ($m Nominal) incl NCIPAP
D68: 2013-14 | E68: 2014-15 | F68: 2015-16 | G68: 2016-17 | H68: 2017-18 | I68: 2018-19 | M68: Actual Gross NCIPAP Capital Expenditure – As commissioned ($m Nominal)
A69: Asset Class | N69: 2013-14 | O69: 2014-15 | P69: 2015-16 | Q69: 2016-17 | R69: 2017-18 | S69: 2018-19
B70: Transmission Lines And Cables - 60Yrs | C70: Transmission Lines And Cables - 60Yrs | D70: 43.8951563 | E70: 5.42152545 | F70: 2.66371688 | G70: 4.22012127 | H70: 13.7004553
B71: Transmission Lines And Cables - 45Yrs | C71: Transmission Lines And Cables - 45Yrs | D71: 3.15982735 | E71: 0.69969367 | F71: 0 | G71: 0 | H71: 0.00063197 | M71: Transmission Lines And Cables - 60Yrs | O71: 0 | P71: 0 | Q71: 0 | R71: 0
B72: Transmission Lines And Cables - 10Yrs | C72: Transmission Lines And Cables - 10Yrs | D72: 0.73140528 | E72: 0.47535362 | F72: 0.7851863 | G72: 1.91100164 | H72: 1.54522665 | M72: Transmission Lines And Cables - 45Yrs | O72: 0 | P72: 0 | Q72: 0.973218 | R72: 0
B73: Transmission Substations - 60Yrs | C73: Transmission Substations - 60Yrs | D73: 10.62422259 | E73: 3.6910834 | F73: 3.00836545 | G73: 1.05954666 | H73: 0.69698415 | M73: Transmission Lines And Cables - 10Yrs | O73: 0 | P73: 0 | Q73: 0 | R73: 0.41006557
B74: Transmission Substations - 45Yrs | C74: Transmission Substations - 45Yrs | D74: 34.77614834 | E74: 9.84739604 | F74: 8.86909614 | G74: 3.67023427 | H74: 10.97399426 | M74: Transmission Substations - 60Yrs | O74: 0 | P74: 0 | Q74: 0.277826 | R74: 0
B75: Transmission Substations - 15Yrs | C75: Transmission Substations - 15Yrs | D75: 4.20765474 | E75: 1.85117965 | F75: 1.483993729 | G75: 1.18530363 | H75: 0.13101641 | M75: Transmission Substations - 45Yrs | O75: 0 | P75: 0 | Q75: 0 | R75: 0
B76: Protection And Control - 15Yrs | C76: Protection And Control - 15Yrs | D76: 23.12796553 | E76: 4.49289392 | F76: 5.5248599 | G76: 1.78220876 | H76: 1.07020071 | M76: Transmission Substations - 15Yrs | O76: 0 | P76: 0 | Q76: 0 | R76: 0
B77: Protection And Control - 4Yrs | C77: Protection And Control - 4Yrs | D77: 0 | E77: 0 | F77: 0 | G77: 0.16366426 | H77: 0.02672625 | M77: Protection And Control - 15Yrs | O77: 0 | P77: 0 | Q77: 0 | R77: 0.2399337
B78: Transmission Operations - 10Yrs | C78: Transmission Operations - 10Yrs | D78: 1.10721722 | E78: 0.38758885 | F78: 0.7906571891 | G78: 8.755223516 | H78: 7.182526288 | M78: Protection And Control - 4Yrs | O78: 0 | P78: 0 | Q78: 0 | R78: 0
B79: Transmission Operations - 4Yrs | C79: Transmission Operations - 4Yrs | D79: 0.16535017 | E79: 0 | F79: 0.43664076 | G79: 1.321595032 | H79: 5.868496432 | M79: Transmission Operations - 10Yrs | O79: 0 | P79: 0 | Q79: 0 | R79: 0
B80: Other - 40Yrs | C80: Other - 40Yrs | D80: 1.13356888 | E80: 0 | F80: 0.1757987612 | G80: 0.2262569388 | H80: 1.150389136 | M80: Transmission Operations - 4Yrs | O80: 0 | P80: 0 | Q80: 0 | R80: 0
B81: Other - 9Yrs | C81: Other - 9Yrs | D81: 0.59577569 | E81: 1.186468219 | F81: 0.0980708819 | G81: 0.5399893992 | H81: 0.6470684504 | M81: Other - 40Yrs | O81: 0 | P81: 0 | Q81: 0 | R81: 0
B82: Other - 4Yrs | C82: Other - 4Yrs | D82: 0 | E82: 3.045307046 | F82: 0.8100549232 | G82: 0.2498275409 | H82: 0.7291281116 | M82: Other - 9Yrs | O82: 0 | P82: 0 | Q82: 0 | R82: 0
B83: Communications - 45Yrs | C83: Communications - 45Yrs | D83: 0 | E83: 0 | F83: 0 | G83: 0.02218679 | H83: 0.19586964 | M83: Other - 4Yrs | O83: 0 | P83: 0 | Q83: 0 | R83: 0.02106786
B84: Communications - 10Yrs | C84: Communications - 10Yrs | D84: 0 | E84: 0 | F84: 0 | G84: 2.63062615 | H84: 2.12506074 | M84: Communications - 45Yrs | O84: 0 | P84: 0 | Q84: 0 | R84: 0
B85: Communications - 5Yrs | C85: Communications - 5Yrs | D85: 0 | E85: 0 | F85: 0 | G85: 0 | H85: 1.0438435 | M85: Communications - 10Yrs | O85: 0 | P85: 0 | Q85: 0 | R85: 0
B86: Land and Buildings | C86: Land and Buildings | D86: 0 | E86: 0 | F86: 0.2789792 | G86: 0 | H86: 0.2486583422 | M86: Communications - 5Yrs | O86: 0 | P86: 0 | Q86: 0 | R86: 0
B87: Equity Raising | C87: Equity Raising | D87: 0 | E87: 0 | F87: 0 | G87: 0 | H87: 0 | M87: Land and Buildings | O87: 0 | P87: 0 | Q87: 0 | R87: 0
J88: Total Yrs 1-5 | K88: Total | M88: Equity Raising | O88: 0 | P88: 0 | Q88: 0 | R88: 0
B89: Sub total | D89: =SUM(D70:D88) -> 123.5242921 | E89: =SUM(E70:E88) -> 31.09848986 | F89: =SUM(F70:F88) -> 24.92542011 | G89: =SUM(G70:G88) -> 27.73778586 | H89: 47.33627634 | I89: 0 | J89: =SUM(E89:I89) -> 131.0979722 | K89: =SUM(D89:I89) -> 254.6222643 | T89: Total Yrs 1-5 | U89: Total
M90: Sub total | N90: =SUM(N71:N89) -> 0 | O90: =SUM(O71:O89) -> 0 | P90: =SUM(P71:P89) -> 0 | Q90: 1.251044 | R90: =SUM(R71:R89) -> 0.67106713 | S90: =SUM(S71:S89) -> 0 | T90: =SUM(O90:S90) -> 1.92211113 | U90: =SUM(N90:S90) -> 1.92211113
A92: Notes: - Exclude half year rate of return. Inputs are assumed to be in middle of year terms because actual capex is reported evenly over a financial year. - The asset classes inputed by each TNSP must be the same as those used in the RFM/PTRM. - Yr -1 is the final year of the previous regulatory control period. - Capex should be adjusted for any movements in capitalised provisions and be net of customer contributions. Where relevant please note the amount of any customer contributions excluded. - Where capex related to Network Capability Incentive Parameter Action Plan (NCIPAP) projects has been incurred and reported across asset classes, the total amount for each project should be noted.
M93: Actual Gross NCIPAP Capital Expenditure – As Commissioned ($m Nominal)
N94: 2013-14 | O94: 2014-15 | P94: 2015-16 | Q94: 2016-17 | R94: 2017-18 | S94: 2018-19
M97: Weather Station refurbishment program | O97: 0 | P97: 0 | Q97: 0.277826 | R97: 0.41006557
M98: ND1246 Substandard Clearances Rectification | O98: 0 | P98: 0 | Q98: 0.973218 | R98: 0
M99: ND1346 George Town Automatic Voltage Control | O99: 0 | P99: 0 | Q99: 0 | R99: 0.10689289
M100: ND1351 Implementation of dynamic rating | O100: 0 | P100: 0 | Q100: 0 | R100: 0
M101: ND1363 TL Dead End Assembly Upgrade Prog Stg 2 | O101: 0 | P101: 0 | Q101: 0 | R101: 0
M102: ND1364 Power Transformer Dynamic Rating Progra | O102: 0 | P102: 0 | Q102: 0 | R102: 0.13304081
A103: Actual Asset Disposal – As De-Commissioned ($m Nominal) | M103: ND1366 Sheffield Sub 220kV K and L Bay Upgrade | O103: 0 | P103: 0 | Q103: 0 | R103: 0.02106786
D104: 2013-14 | E104: 2014-15 | F104: 2015-16 | G104: 2016-17 | H104: 2017-18 | I104: 2018-19 | M104: ND1372 Modern fault location functionality | O104: 0 | P104: 0 | Q104: 0 | R104: 0
A105: Asset Class | M105: Sub total | N105: =SUM(N96:N104) -> 0 | O105: 0 | P105: 0 | Q105: 1.251044 | R105: 0.67106713 | S105: 0 | T105: =SUM(O105:S105) -> 1.92211113 | U105: =SUM(N105:S105) -> 1.92211113
B106: Insert asset class from RFM
B107: Insert asset class from RFM
B108: Insert asset class from RFM
B109: Insert asset class from RFM
B110: Insert asset class from RFM
B111: Insert asset class from RFM
B112: Insert asset class from RFM
B113: Insert asset class from RFM
B114: Insert asset class from RFM
B115: Insert asset class from RFM | J115: Total Yrs 1-5 | K115: Total
B116: Sub total | D116: =SUM(D106:D115) -> 0 | E116: 0 | F116: 0 | G116: 0 | H116: 0 | I116: 0 | J116: =SUM(E116:I116) -> 0 | K116: =SUM(D116:I116) -> 0
A118: Notes: - Exclude half year rate of return. Inputs are assumed to be in middle of year terms because actual disposal is reported evenly over a financial year. - The asset classes inputed by each TNSP must be the same as those used in the RFM/PTRM. - Yr -1 is the final year of the previous regulatory control period.

Sheet Hist Capex - Network
B2: HISTORIC CAPEX - NETWORK- by project
D6: Not Required - Duplicated in Category Analysis RIN
A14: $M nominal
F15: Yearly expenditure by project (inclusive of FDC)
A17: Project ID | B17: Project Description | C17: Commissioning Date | D17: Category^ | F17: Any Part Year | G17: Year 1 | H17: Year 2 | I17: Year 3 | J17: Year 4 | K17: Year 5 | L17: TOTAL | N17: REASON FOR PROJECT | O17: Reg Test / Business Case (Y/N) | P17: Reg Test / Business Case Cost Estimate | Q17: Reason for Variance from Cost Estimate / Expected Commissioning Date
F37: Subtotal
D39: ^refers to Categories (e.g Augmentation, Replacement, etc) as defined in “Historic Capex Instructions” worksheet | J39: *Note that values in these columns are estimates only

Sheet Hist Capex - Non-Network
B2: HISTORIC CAPEX - NON-NETWORK- by project
A14: $M nominal
F15: Yearly expenditure by project (inclusive of FDC)
A17: Project ID | B17: Project Description | C17: Commissioning Date | D17: Category^ | F17: Any Part Year | G17: 2014-15 | H17: 2015-16 | I17: 2016-17 | J17: 2017-18 | K17: 2018-19 | L17: TOTAL | N17: REASON FOR PROJECT | O17: Reg Test / Business Case (Y/N) | P17: Reg Test / Business Case Cost Estimate | Q17: Reason for Variance from Cost Estimate / Expected Commissioning Date
A18: ND1348 | B18: Maria Street Accomodation | D18: Business Support | G18: 0.3818300434 | H18: 0 | I18: 0.02047469212 | J18: 0.01041560694 | L18: =SUM(F18:K18) -> 0.4127203424
A19: - | B19: Fleet | D19: Business Support | G19: 0.6723852852 | H19: 0.6267953631 | I19: 0.6544342092 | J19: 1.041582345 | L19: =SUM(F19:K19) -> 2.995197202
A20: - | B20: Rocherlea Accomodation Upgrade | D20: Business Support | G20: 0 | H20: 0.2419023755 | I20: 0.0584799339 | J20: 0.0406933749 | L20: 0.3410756843
A21: Various | B21: Business Support Projects < $250,000 | D21: Business Support | G21: 0.204902 | H21: 0.2476781841 | I21: 0.8594264679 | J21: 0.667568944 | L21: 1.979575596
A24: - | B24: Ajilis | D24: Information Technology | G24: 0.4467791388 | H24: 3.522696465 | I24: 5.025343978 | J24: 4.061558392 | L24: 13.05637797
A25: M/225591 | B25: 176153 Data Centre - Remediation | D25: Information Technology | G25: 0.2428092158 | H25: 0.0024283565 | I25: 0 | J25: 0 | L25: 0.2452375723
A26: Various | B26: Business Support Projects < $250,000 | D26: Information Technology | G26: 1.228878 | H26: 0.7098442575 | I26: 3.428457074 | J26: 3.759091592 | L26: 9.126270924
F29: Subtotal | G29: =SUM(G18:G28) -> 3.177583683 | H29: =SUM(H18:H28) -> 5.351345001 | I29: 10.04661636 | J29: 9.580910256 | K29: 0 | L29: 28.1564553
D31: ^refers to Categories (e.g Augmentation, Replacement, etc) as defined in “Historic Capex Instructions” worksheet | J31: *Note that values in these columns are estimates only

Sheet DRS
A1: Directors Responsibility Statement
A3: In the opinion of the directors of Tasmanian Networks Pty Ltd:
A5: ● | B5: The regulatory financial statements and other statements, schedules and work papers set out on pages 1 to 24 are drawn up to present fairly as required by the Australian Energy Regulator's (AER's) Transmission Network Service Providers Information Guideline issued April 2015, including:
B7: ● | C7: The results of each business segment for the regulatory accounting period ended 30 June 2018.
B9: ● | C9: Information concerning the state of affairs at 30 June 2018, of each business segment.
A11: ● | B11: No related party transactions arose during the regulatory accounting period that require disclosure under paragraph 4.14 of the guideline.
A13: ● | B13: No third party benefit transactions arose during the regulatory accounting period that require disclosure under paragraph 4.15 of the guideline.
A15: ● | B15: No financing transactions arose during the regulatory accounting period that requires disclosure under paragraph 4.16 of the guideline.
A17: The terms and definitions used in this statement accord with the definitions set out in the AER's Transmission Network Service Provider Information Guideline referred to above.
A19: Signed in accordance with a resolution of directors:
A26: _________________________ | D26: _______________________
A27: Dr Dan Norton AO | D27: Ms Joanne Doyle
A29: 1 November 2018 | D29: 1 November 2018
